Cogmind - Beta 11 @@@ ROGUE MODE // 2022.03.20 @ 16:21:48 Player: Vivisector9999 Result: Destroyed by D-53 Grenadier with Mini Grenade Launcher Performance ------------- Evolutions (0) 0 Regions Visited (2) 400 Robots Destroyed (13) 65 Value Destroyed (269) 269 Prototype IDs (0) 0 Alien Tech Used (0) 0 Bonus (2) 2 TOTAL SCORE: 736 Bonus ------- High Alert Combat Kills 2 Cogmind --------- Core Integrity 0/250 Matter 202/300 Energy 90/100 System Corruption 0% Temperature Cool (74) Movement Core (100) Ox1 Location -10/Mines Parts ------- > --- POWER (1) -------- (None) > --- PROPULSION (2) --- (None) > --- UTILITY (2) ------ Utility Shielding > --- WEAPON (2) ------- Particle Gun > --- INVENTORY (5) ---- Seismic Detector Shield Generator Peak State ------------ > --- POWER ------------ Light Ion Engine > --- PROPULSION ------- Light Treads Light Treads > --- UTILITY ---------- Improved Heat Sink Small Storage Unit > --- WEAPON ----------- Medium Laser Medium Laser > --- INVENTORY -------- Aluminum Leg Aluminum Leg Seismic Detector Shield Generator Particle Gun Particle Gun Light Assault Rifle Grenade Launcher [Rating: 10] Favorites ----------- Power Light Ion Engine Engine Light Ion Engine Propulsion Light Treads Treads Light Treads Utility Small Storage Unit Device Improved Heat Sink Storage Small Storage Unit Protection Utility Shielding Weapon Medium Laser Energy Gun Medium Laser Launcher Grenade Launcher Build | -11 -10 -10 ------- Run | Scr Mat Min Slots Evolved . | . . . Power . | . . . Propulsion . | . . . Utility . | . . . Weapon . | . . . Parts Attached 16 | 6 2 8 Power 3 | 1 1 1 Engine 3 | 1 1 1 Core . | . . . Reactor . | . . . Propulsion 2 | 2 . . Treads 2 | 2 . . Leg . | . . . Wheel . | . . . Hover . | . . . Flight . | . . . Utility 3 | 1 1 1 Device 1 | . 1 . Storage 1 | 1 . . Processor . | . . . Hackware . | . . . Protection 1 | . . 1 Artifact . | . . . Weapon 8 | 2 . 6 Energy Gun 6 | 2 . 4 Energy Cannon . | . . . Ballistic Gun . | . . . Ballistic Cannon . | . . . Launcher 2 | . . 2 Special Weapon . | . . . Impact Weapon . | . . . Slashing Weapon . | . . . Piercing Weapon . | . . . Special Melee Weapon . | . . . Unidentified Prototypes . | . . . Parts Lost 10 | . . 10 Power 2 | . . 2 Propulsion 2 | . . 2 Utility 2 | . . 2 Weapon 4 | . . 4 Highest Loss Streak 10 | . . 10 To Critical Strikes . | . . . Average Slot Usage (%) 90 | . 94 86 Engine 12 | . 14 11 Treads 25 | . 28 22 Device 9 | . 8 10 Storage 14 | . 14 14 Energy Gun 21 | . 28 14 Launcher 4 | . . 9 Naked Turns . | . . . Heaviest Build 16 | 12 13 16 Greatest Support 40 | 40 40 40 Greatest Overweight (x) 5 | . . 5 Average Overweight (x) . | . . . Largest Inventory Capacity 8 | 8 8 8 Average Capacity 7 | 7 8 8 Most Carried 8 | 6 8 7 Average Carried 6 | 4 6 6 Final Capacity 8 | 8 8 8 Final Carried 7 | 6 7 7 Class Distribution -------------------- 100% | Mutant Dominant Class ---------------- Mutant | -10/Materials Mutant | -10/Mines Resources | -11 -10 -10 ----------- Run | Scr Mat Min Matter Collected 272 | 186 80 6 Remotely . | . . . Salvage Created 125 | . 80 45 Parts 23 | . 4 19 Haulers Intercepted . | . . . Recyclers Shooed . | . . . Parts Field Recycled . | . . . Retrieved Matter . | . . . Parts Self-Destructed . | . . . Prevented . | . . . Kills | -11 -10 -10 ------- Run | Scr Mat Min Combat Hostiles Destroyed 12 | . 2 10 Guns 4 | . 2 2 AOE 8 | . . 8 Classes Destroyed 4 | . 1 3 Builder 1 | . . 1 Swarmer 9 | . . 9 Grunt 2 | . 2 . Demolisher 1 | . . 1 Best Kill Streak 6 | . 2 6 Combat Bots Only 6 | . 2 6 Max Kills in Single Turn 3 | . 1 3 Gunslinging . | . . . Exploded 3 | . . 3 Melee . | . . . Uniques/NPCs Destroyed . | . . . Combat | -11 -10 -10 -------- Run | Scr Mat Min Damage Taken 1183 | . 102 1081 Core 266 | . 18 248 Absorbed by Shields . | . . . Redirected to Shielding 32 | . . 32 Core Remaining (%) 100 | 100 . . Volleys Fired 30 | . 7 23 Largest 2 | . 2 2 Hottest 115 | . 100 115 Shots Fired 47 | . 14 33 Gun 41 | . 14 27 Cannon . | . . . Launcher 6 | . . 6 Special . | . . . Kinetic . | . . . Thermal 41 | . 14 27 Explosive 6 | . . 6 Electromagnetic . | . . . Robot Hit Streak 8 | . 8 6 Robot Miss Streak 3 | . 3 3 Penetration Max . | . . . Secondary Targets . | . . . Shots Hit Robots 27 | . 9 18 Core Hits 23 | . 5 18 Critical Kills . | . . . Critical Parts Destroyed . | . . . Critical Strikes 2 | . 1 1 Burn 2 | . 1 1 Melee Attacks . | . . . Impact . | . . . Slashing . | . . . Piercing . | . . . Sneak Attacks . | . . . Combat Hostiles . | . . . Follow-up Attacks . | . . . Damage Inflicted 847 | . 114 733 Guns 319 | . 114 205 Cannons . | . . . Explosions 528 | . . 528 Melee . | . . . Ramming . | . . . Kinetic . | . . . Thermal 374 | . 114 260 Explosive 473 | . . 473 Electromagnetic . | . . . Impact . | . . . Slashing . | . . . Piercing . | . . . Highest Corruption . | . . . Average Corruption . | . . . Corruption Purged . | . . . Corruption Blocked . | . . . Overload Shots . | . . . Overflow Damage 20 | . . 20 Projectiles . | . . . Explosions 20 | . . 20 Melee . | . . . Knockbacks . | . . . Impact . | . . . Kinetic . | . . . Secondary . | . . . Self-Inflicted Damage 93 | . . 93 Shots 4 | . . 4 Rammed . | . . . Targets Rammed . | . . . Kicked . | . . . Crushed . | . . . Highest Temperature 324 | . 324 117 Average Temperature 105 | . 162 49 Received Heat Transfer 60 | . 60 . Siege Activations . | . . . Robots Corrupted . | . . . Combat Hostiles . | . . . Parts Fried . | . . . Impact Corruptions . | . . . Robots Melted . | . . . Combat Hostiles . | . . . Parts Melted 1 | . 1 . Heat Transferred 1086 | . 407 679 Parts Sabotaged . | . . . Parts Stolen . | . . . Parts Stripped . | . . . Power Chain Reactions . | . . . Missiles Intercepted . | . . . Alert | -11 -10 -10 ------- Run | Scr Mat Min Peak Influence 429 | . 55 429 Initial 21 | . . 21 Average 160 | . 37 359 Maximum Alert Level 2 | . . 2 Low Security (%) 62 | 100 100 7 Level 1 19 | . . 48 Level 2 18 | . . 44 Level 3 . | . . . Level 4 . | . . . Level 5 . | . . . High Security . | . . . Max Security . | . . . Squads Dispatched . | . . . Investigation . | . . . Extermination . | . . . Reinforcement . | . . . Assault . | . . . Garrison . | . . . Intercept . | . . . Searches Triggered . | . . . Construction Impeded . | . . . Haulers Reinforced . | . . . Active Scanning Responses . | . . . Cargo Convoy Interrupts . | . . . Stealth | -11 -10 -10 --------- Run | Scr Mat Min Distress Signals . | . . . Communications Jammed . | . . . Distress Signals . | . . . Times Spotted 15 | . 5 10 Peak Tracking Total 3 | . 2 3 Tactical Retreats . | . . . Traps | -11 -10 -10 ------- Run | Scr Mat Min Traps Triggered . | . . . Indirectly . | . . . Trap Hack Attempts . | . . . Triggered . | . . . Disarmed . | . . . Reprogrammed . | . . . Reused . | . . . Traps Extracted . | . . . Installed . | . . . Triggered . | . . . Machines | -11 -10 -10 ---------- Run | Scr Mat Min Machines Disabled 4 | . . 4 Max in Single Turn 3 | . . 3 Machines Sabotaged . | . . . Garrisons Compromised . | . . . Overloaded Fab Kills . | . . . Hacking | -11 -10 -10 --------- Run | Scr Mat Min Machines Accessed 1 | . 1 . Terminals 1 | . 1 . Fabricators . | . . . Repair Stations . | . . . Recycling Units . | . . . Scanalyzers . | . . . Garrison Access . | . . . Total Hacks 2 | . 2 . Successful 1 | . 1 . Failed 1 | . 1 . Catastrophic . | . . . Database Lockouts . | . . . Manual . | . . . Terminals 2 | . 2 . Fabricators . | . . . Repair Stations . | . . . Recycling Units . | . . . Scanalyzers . | . . . Garrison Access . | . . . Terminal Hacks 1 | . 1 . Record 1 | . 1 . Fabricator Hacks . | . . . Repair Station Hacks . | . . . Recycling Unit Hacks . | . . . Scanalyzer . | . . . Garrison Access Hacks . | . . . Unauthorized Hacks . | . . . Terminals . | . . . Fabricators . | . . . Repair Stations . | . . . Recycling Units . | . . . Scanalyzers . | . . . Garrison Access . | . . . Data Cores Recovered . | . . . Used . | . . . Hacking Detections 1 | . 1 . Full Trace Events . | . . . Feedback Events . | . . . Feedback Blocked . | . . . Robot Schematics Acquired . | . . . Robots Built . | . . . Authchips . | . . . Time . | . . . Total Robot Build Rating . | . . . Part Schematics Acquired . | . . . Parts Built . | . . . Authchips . | . . . Time . | . . . Total Part Build Rating . | . . . Parts Repaired . | . . . Time . | . . . Parts Recycled . | . . . Recycled Matter . | . . . Retrieved Matter . | . . . Retrieved Components . | . . . Parts Scanalyzed . | . . . Part Schematics Acquired . | . . . Parts Damaged . | . . . Bothacking | -11 -10 -10 ------------ Run | Scr Mat Min Used RIF Installer . | . . . Robots Hacked . | . . . Non-combat . | . . . Combat . | . . . Robot Hacks Applied . | . . . Relay Couplers Released . | . . . Fabnet Peak Effective % . | . . . Robots Rewired . | . . . Allies Hacked . | . . . Hacks Repelled . | . . . Allies | -11 -10 -10 -------- Run | Scr Mat Min Total Allies . | . . . Largest Group . | . . . Highest-Rated Group . | . . . Highest-Rated Ally . | . . . Total Orders . | . . . Ally Attacks . | . . . Total Damage . | . . . Kills . | . . . Allies Corrupted . | . . . Allies Melted . | . . . Intel | -11 -10 -10 ------- Run | Scr Mat Min Robot Analysis Total . | . . . Derelict Logs Recovered . | . . . Drone Launches . | . . . Drone Recoveries . | . . . Exploration | -11 -10 -10 ------------- Run | Scr Mat Min Turns Passed 655 | 131 259 265 Spaces Moved 317 | 72 123 122 Core 7 | 2 . 5 Treads 310 | 70 123 117 Legs . | . . . Wheels . | . . . Hover . | . . . Flight . | . . . Fastest Speed 50 | 50 160 150 Average Speed 161 | 156 160 164 Slowest Speed 300 | 160 160 300 Overloaded Moves . | . . . Propulsion Burnouts . | . . . Robots Hopped . | . . . Cave-ins Triggered . | . . . Exploration Rate (%) 18 | 6 23 26 Regions Visited 2 Branch Regions 1 Pre-discovered Areas . | . . . Known Exits Taken . | . . . Unknown Exits Taken 2 | 1 1 . Scrap Searched . | . . . Spaces Dug 8 | . . 8 Terrain Destroyed 45 | . . 45 Melee . | . . . Projectile . | . . . AOE 45 | . . 45 Terrain Rammed . | . . . Walls Destroyed . | . . . Machines Disabled . | . . . Actions | -11 -10 -10 --------- Run | Scr Mat Min Total 417 | 90 174 153 Wait 28 | 1 27 . Move 315 | 71 122 122 Hop . | . . . Pick Up 21 | 12 9 . Fast Attach . | . . . Attach 12 | 6 1 5 Detach . | . . . Swap 4 | . 1 3 Drop 7 | . 7 . Fire 30 | . 7 23 Melee . | . . . Ram . | . . . Kick . | . . . Crush . | . . . Escape Stasis . | . . . Rewire . | . . . Trap . | . . . Miscellaneous . | . . . Route ------- -11/Scrapyard -10/Materials -10/Mines (discovered 2 exits: [*Mat x2]) History --------- Turn | Location | Event 12 | -11/Scrapyard | Discovered new exit (range 15) 132 | -11/Scrapyard | Entered Materials 316 | -10/Materials | Discovered new exit (range 7) 321 | -10/Materials | Build established: Mutant 391 | -10/Materials | Entered Mines 415 | -10/Mines | Discovered new exit (range 12) 576 | -10/Mines | Assembled infested the area 576 | -10/Mines | Discovered new exit (range 12) 611 | -10/Mines | Core integrity fell below 50% 645 | -10/Mines | Core integrity fell below 20% 656 | -10/Mines | Destroyed by D-53 Grenadier with Mini Grenade Launcher Last Messages --------------- 00627_ The unstable cave ceiling collapses. 00627_ U-05 Engineer lays Concrete. 00634_ K-01 Serf collects debris. 00635_ U-05 Engineer lays Concrete. 00636_ Particle Gun destroyed. 00636_ U-05 Engineer lays Concrete. 00639_ The unstable cave ceiling collapses. 00639_ U-05 Engineer lays Concrete. 00640_ U-05 Engineer destroyed. 00641_ K-01 Serf collects debris. 00642_ Med. Laser destroyed. 00643_ K-01 Serf collects debris. 00644_ Ion Engine destroyed. 00646_ K-01 Serf collects debris. 00646_ K-01 Serf destroyed. 00646_ K-01 Serf collects debris. 00651_ The unstable cave ceiling collapses. 00653_ K-01 Serf collects debris. 00656_ U-05 Engineer destroyed. 00656_ Sml. Storage Unit destroyed. Map ----- +----------------------------------------------------+ | ?????????????????????????????????????????? | | ?????????????????????????????????????????? | | ?????????????????????????????????????????? | | ?????????????????????????????????????????? | | ?????????????????????????????????????????? | | ?????????????##############??????????????? | | ?????????????# #??????????????? | | ?????????????# #??????????????? | | ?????????????# #??????????????? | | ?????????????# #??????????????? | | ?????????????# #??????????????? | | ????????????## #??????????????? | | ????????????#" #??????????????? | | ????????????#" #??????????????? | | ????????????#" #?????####?????? | | ????????????#" #????## ##????? | | ????????????##"""" ## ##????# #????? | | ?????????????########## ####### #????? | | ???????????????????# < #????? | | ??????????????????## ####### #????? | | ?????????????????## ### #????? | | ?????????????????# k ## ##????? | | ?????????????????# %= ## ##????? | | ?????????????????# # #????? | | ?????????????????# ## #????? | | ?????????????????# @ #### #????? | | ?????????????????# t #?# #????? | | ?????????? ?????##!* ##?# #????? | | ???????? ??????#!%! #?## #????? | | ?????? #?????# d # # # ### ##???? | | ?????? #????# # # # ##??? | | ??????? "%< ???# ### # # # #??? | | ???????# ?? ##### # #### ##??? | | ???????# ## # ## #??# #??? | | ???????# ## # #?### #??? | | ???????# ?## #?# #??? | | ???????# ##### ###?## #??? | | ???????? # # # #???## " #??? | | ??????????# # #???# " #??? | | ?????????# # #???# #??? | | ?????????# # # ##???########??? | | ?????????# ####??????????????? | | ?????????# #????????????????? | | ?????????# #???????????????? | | ?????????# #???????????????? | | ?????????## ##???????????????? | | ??????????#### ####????????????????? | | ?????????????### ##???????????????????? | | ???????????????## ##????????????????????? | | ????????????????####?????????????????????? | +----------------------------------------------------+ Best States ------------- Heat Dissipation 39 Energy Generation 10 Energy Capacity 250 Matter Stores 296 Matter Capacity 300 Sight Range 16 Terrain Scan Density 10 Utility Shielding 33 Evasion (%) 40 Recoil Reduction 2 Item Schematics ----------------- None Robot Schematics ------------------ None Fabricated ------------ Nothing Alien Tech Used ----------------- None Achievements -------------- None Challenges ------------ None Game ------ Seed BiomechanicalMyomerCompactor Manual? 0 Play Time 00:20:04 Cumulative 0.6 hours Start 2022.03.20 @ 15:42:52 End 2022.03.20 @ 16:21:48 Sessions 3 Manual Loads 0 Difficulty Rogue Special Mode None Game No. 0 Rogue 0 Adventurer 0 Explorer 0 Win Type - Total 0 Types 0/0/0/0/0/0/0/0/0 Lore% 0 Gallery% 0 Achievement% 19 Wizard Run 0 Options --------- ASCII 0 Keyboard 0 Movement Numpad Keybinds 0 Fullscreen 1 Font 18/SmallcapsGlow Map View 76x50 Tactical HUD 1 Map Filters NONE Filters NONE Steam 1 RUN: 23b75a45-62eb-4c55-9776-3c9872b8bda3